fUSD/lending_fUSD_20240115
["ID","MTS","AMOUNT","RATE_DAILY","PERIOD"]
[311666704,1705299045323,-202.19014222,0.00026598,2]
[311666706,1705299045332,-655.81827653,0.00026598,2]
[311666708,1705299045341,-1000.0,0.000266,2]
[311666710,1705299045351,-1000.0,0.000266,2]
[311666712,1705299045361,-2000.0,0.000266,2]
[311666714,1705299045371,-291.51323841,0.00026603,3]
[311666717,1705299045381,-1319.66004404,0.00026603,3]
[311666718,1705299045391,-207.0,0.0002664,2]
[311666719,1705299045401,-1487.52,0.00026685,2]
[311666720,1705299045412,-651.37,0.00026737,2]
[311666722,1705299045422,-500.0,0.00026858,2]
[311666725,1705299045433,-782.499,0.00026893,2]
[311666727,1705299045443,-426.0,0.00026893,2]
[311666729,1705299045453,-19692.0,0.00026932,2]
[311666731,1705299045463,-2272.0,0.00026932,2]
[311666733,1705299045473,-2903.0,0.00026932,2]
[311666735,1705299045482,-1123.79583127,0.00026932,2]
[311666737,1705299045496,-274.29916873,0.00026932,2]
[311666739,1705299045505,-150.0,0.00026932,2]
[311666740,1705299045516,-10000.0,0.00026975,2]
[311666741,1705299045526,-718.21012435,0.00027,2]
[311666742,1705299045536,-1400.0,0.00027,3]
[311666743,1705299045545,-3330.949005,0.00027,2]
[311666744,1705299045554,-300.0,0.00027,2]
[311666745,1705299045565,-150.0,0.00027,2]
[311666746,1705299045575,-414.477458,0.00027,2]
[311666747,1705299045585,-815.93,0.00027096,2]
[311666748,1705299045595,-418.16,0.00027096,2]
[311666749,1705299045605,-418.16,0.00027096,2]
[311666750,1705299045615,-418.16,0.00027096,2]
[311666751,1705299045624,-500.0,0.00027122,2]
[311666752,1705299045634,-505.13058694,0.00027122,7]
[311666753,1705299045643,-500.0,0.00027122,10]
[311666754,1705299045653,-1000.0,0.000272,2]
[311666755,1705299045663,-1013.42,0.000272,3]
[311666756,1705299045673,-500.0,0.00027218,2]
[311666757,1705299045683,-418.16,0.00027262,2]
[311666758,1705299045692,-150.0,0.00027262,2]
[311666759,1705299045702,-408.31,0.00027262,2]
[311666760,1705299045712,-301.52,0.00027262,2]
[311666761,1705299045722,-150.0,0.00027262,2]
[311666762,1705299045733,-150.0,0.00027262,2]
[311666763,1705299045743,-150.0,0.00027262,2]
[311666764,1705299045753,-150.0,0.00027262,2]
[311666765,1705299045762,-408.24,0.00027262,2]
[311666766,1705299045772,-381.37,0.00027262,2]
[311666767,1705299045782,-150.0,0.00027262,2]
[311666768,1705299045792,-151.07,0.00027262,2]
[311666769,1705299045801,-5542.34173457,0.0002728,2]
[311666770,1705299045811,-24197.26752591,0.0002728,2]
[311666771,1705299045820,-207.0,0.0002728,2]
[311666772,1705299045829,-1319.66004404,0.00027297,3]
[311666773,1705299045840,-291.51323841,0.00027297,3]
[311666774,1705299045849,-313.04528439,0.00027298,2]
[311666775,1705299045859,-526.7690375,0.00027298,2]
[311666776,1705299045869,-300.70973742,0.00027298,2]
[311666777,1705299045878,-273.94855617,0.00027299,2]
[311666778,1705299045887,-7716.02099882,0.000273,2]
[311666779,1705299045899,-315.95,0.00027312,2]
[311666780,1705299045911,-344.92,0.00027385,2]
[311666781,1705299045921,-307.25020269,0.00027396,2]
[311666782,1705299045930,-1000.0,0.00027397,2]
[311666783,1705299045941,-1014.17855602,0.00027397,2]
[311666784,1705299045951,-500.0,0.00027397,2]
[311666785,1705299045961,-502.91112728,0.00027397,2]
[311666786,1705299045971,-500.0,0.00027397,2]
[311666787,1705299045982,-500.0,0.00027397,2]
[311666788,1705299045992,-464.18664538,0.00027397,2]
[311666789,1705299046002,-500.0,0.00027397,2]
[311666790,1705299046012,-290.29012707,0.00027397,2]
[311666791,1705299046022,-190.73032423,0.00027397,2]
[311666792,1705299046032,-170.20616057,0.00027397,2]
[311666793,1705299046041,-286.82553283,0.00027397,2]
[311666794,1705299046051,-500.64283184,0.00027397,2]
[311666795,1705299046060,-250.3207329,0.00027397,5]
[311666796,1705299046070,-500.0,0.00027397,2]
[311666797,1705299046079,-500.0,0.00027397,2]
[311666798,1705299046089,-500.0,0.00027397,2]
[311666799,1705299046099,-500.0,0.00027397,2]
[311666800,1705299046108,-253.5082876,0.00027397,2]
[311666802,1705299046118,-242.23483506,0.00027397,2]
[311666804,1705299046127,-500.0,0.00027397,2]
[311666806,1705299046136,-502.73077177,0.00027397,2]
[311666808,1705299046146,-522.02846474,0.00027397,2]
[311666810,1705299046155,-592.70274864,0.00027397,2]
[311666812,1705299046165,-500.0,0.00027397,2]
[311666814,1705299046174,-501.58886779,0.00027397,2]
[311666816,1705299046184,-503.04350436,0.00027397,2]
[311666818,1705299046193,-505.19978508,0.00027397,2]
[311666820,1705299046203,-500.0,0.00027397,2]
[311666822,1705299046213,-501.65686532,0.00027397,2]
[311666824,1705299046223,-500.0,0.00027397,2]
[311666826,1705299046234,-500.91979986,0.00027397,2]
[311666829,1705299046244,-502.20118719,0.00027397,2]
[311666831,1705299046254,-500.0,0.00027397,2]
[311666833,1705299046263,-500.0,0.00027397,2]
[311666835,1705299046273,-500.0,0.00027397,2]
[311666837,1705299046282,-500.0,0.00027397,2]
[311666839,1705299046292,-500.0,0.00027397,2]
[311666841,1705299046301,-503.26260049,0.00027397,2]
[311666843,1705299046310,-500.0,0.00027397,2]
[311666845,1705299046320,-500.0,0.00027397,2]
[311666847,1705299046329,-500.0,0.00027397,2]
[311666849,1705299046338,-500.0,0.00027397,2]
[311666851,1705299046348,-500.0,0.00027397,2]
[311666853,1705299046358,-168.55749356,0.00027397,2]
[311666855,1705299046367,-500.0,0.00027397,2]
[311666857,1705299046376,-500.0,0.00027397,2]
[311666859,1705299046386,-505.81074184,0.00027397,2]
[311666861,1705299046395,-503.29832905,0.00027397,2]
[311666863,1705299046405,-596.97755943,0.00027397,2]
[311666865,1705299046414,-500.0,0.00027397,2]
[311666867,1705299046424,-503.80431245,0.00027397,2]
[311666870,1705299046433,-500.0,0.00027397,2]
[311666872,1705299046443,-500.0,0.00027397,2]
[311666874,1705299046453,-500.0,0.00027397,2]
[311666876,1705299046462,-227.72841287,0.00027397,2]
[311666878,1705299046472,-500.0,0.00027397,2]
[311666880,1705299046482,-500.0,0.00027397,2]
[311666882,1705299046491,-500.0,0.00027397,2]
[311666884,1705299046501,-351.24098953,0.00027397,2]
[311666886,1705299046510,-500.0,0.00027397,2]
[311666888,1705299046520,-500.0,0.00027397,2]
[311666890,1705299046530,-502.04760536,0.00027397,2]
[311666892,1705299046539,-500.0,0.00027397,2]
[311666894,1705299046549,-500.0,0.00027397,2]
[311666896,1705299046559,-500.0,0.00027397,2]
[311666898,1705299046569,-500.0,0.00027397,2]
[311666900,1705299046578,-534.99337832,0.00027397,2]
[311666902,1705299046588,-500.0,0.00027397,2]
[311666904,1705299046598,-500.0,0.00027397,2]
[311666907,1705299046608,-500.0,0.00027397,2]
[311666909,1705299046618,-500.0,0.00027397,2]
[311666911,1705299046627,-555.7,0.00027397,2]
[311666913,1705299046637,-500.0,0.00027397,2]
[311666915,1705299046646,-500.0,0.00027397,2]
[311666917,1705299046656,-500.0,0.00027397,2]
[311666919,1705299046665,-500.0,0.00027397,2]
[311666921,1705299046675,-500.0,0.00027397,2]
[311666923,1705299046684,-1082.78,0.00027397,2]
[311666925,1705299046694,-505.97130481,0.00027397,2]
[311666927,1705299046703,-500.0,0.00027397,2]
[311666929,1705299046713,-500.0,0.00027397,2]
[311666931,1705299046724,-520.45,0.00027397,2]
[311666933,1705299046733,-500.0,0.00027397,2]
[311666935,1705299046745,-502.47345904,0.00027397,2]
[311666937,1705299046755,-500.0,0.00027397,2]
[311666939,1705299046765,-500.0,0.00027397,2]
[311666941,1705299046775,-504.5740317,0.00027397,2]
[311666943,1705299046785,-500.0,0.00027397,2]
[311666945,1705299046795,-500.0,0.00027397,2]
[311666948,1705299046804,-502.31323963,0.00027397,2]
[311666950,1705299046814,-504.37537641,0.00027397,2]
[311666952,1705299046823,-500.0,0.00027397,2]
[311666954,1705299046833,-500.0,0.00027397,2]
[311666956,1705299046842,-500.0,0.00027397,2]
[311666958,1705299046851,-505.00782465,0.00027397,2]
[311666960,1705299046861,-500.0,0.00027397,2]
[311666962,1705299046871,-500.0,0.00027397,2]
[311666964,1705299046881,-500.0,0.00027397,2]
[311666966,1705299046890,-500.0,0.00027397,2]
[311666968,1705299046901,-500.0,0.00027397,2]
[311666970,1705299046912,-537.78261777,0.00027397,2]
[311666972,1705299046922,-500.0,0.00027397,2]
[311666974,1705299046931,-500.0,0.00027397,2]
[311666976,1705299046942,-500.0,0.00027397,2]
[311666978,1705299046953,-500.0,0.00027397,2]
[311666980,1705299046963,-500.0,0.00027397,2]
[311666982,1705299046972,-500.0,0.00027397,2]
[311666985,1705299046983,-510.25743173,0.00027397,2]
[311666987,1705299046992,-503.29921661,0.00027397,2]
[311666989,1705299047002,-500.0,0.00027397,2]
[311666991,1705299047011,-500.0,0.00027397,2]
[311666993,1705299047022,-500.0,0.00027397,2]
[311666995,1705299047031,-500.0,0.00027397,2]
[311666997,1705299047040,-508.12604528,0.00027397,2]
[311666999,1705299047050,-500.0,0.00027397,2]
[311667001,1705299047059,-615.06,0.00027397,2]
[311667003,1705299047069,-500.0,0.00027397,2]
[311667005,1705299047079,-505.06648192,0.00027397,2]
[311667007,1705299047088,-503.76893879,0.00027397,2]
[311667009,1705299047098,-513.14644985,0.00027397,2]
[311667011,1705299047108,-500.0,0.00027397,2]
[311667014,1705299047117,-506.2723854,0.00027397,2]
[311667016,1705299047127,-500.0,0.00027397,2]
[311667018,1705299047137,-500.0,0.00027397,2]
[311667020,1705299047146,-747.72909426,0.00027397,2]
[311667024,1705299047180,-271.95946936,0.00027397,2]
[311667027,1705299047190,-504.72965681,0.00027397,2]
[311667029,1705299047200,-501.12529749,0.00027397,2]
[311667031,1705299047209,-500.0,0.00027397,2]
[311667033,1705299047219,-500.0,0.00027397,2]
[311667035,1705299047229,-500.0,0.00027397,2]
[311667037,1705299047240,-500.0,0.00027397,2]
[311667039,1705299047250,-500.0,0.00027397,2]
[311667041,1705299047259,-500.0,0.00027397,2]
[311667043,1705299047269,-500.0,0.00027397,2]
[311667045,1705299047278,-500.0,0.00027397,2]
[311667047,1705299047288,-500.0,0.00027397,2]
[311667049,1705299047297,-500.0,0.00027397,2]
[311667051,1705299047307,-824.23,0.00027397,2]
[311667053,1705299047317,-509.76372608,0.00027397,2]
[311667055,1705299047327,-505.03406789,0.00027397,2]
[311667057,1705299047337,-500.0,0.00027397,2]
[311667059,1705299047346,-500.0,0.00027397,2]
[311667062,1705299047356,-500.0,0.00027397,2]
[311667064,1705299047365,-500.0,0.00027397,2]
[311667066,1705299047375,-500.0,0.00027397,2]
[311667068,1705299047385,-500.0,0.00027397,2]
[311667070,1705299047394,-500.0,0.00027397,2]
[311667072,1705299047403,-506.3003961,0.00027397,2]
[311667074,1705299047413,-500.0,0.00027397,2]
[311667076,1705299047423,-503.53903146,0.00027397,2]
[311667078,1705299047432,-500.0,0.00027397,2]
[311667080,1705299047442,-500.0,0.00027397,2]
[311667082,1705299047452,-500.0,0.00027397,2]
[311667085,1705299047462,-500.0,0.00027397,2]
[311667087,1705299047472,-500.0,0.00027397,2]
[311667089,1705299047482,-500.0,0.00027397,2]
[311667091,1705299047493,-500.0,0.00027397,2]
[311667093,1705299047502,-500.0,0.00027397,2]
[311667095,1705299047512,-500.0,0.00027397,2]
[311667097,1705299047525,-500.0,0.00027397,2]
[311667099,1705299047535,-500.0,0.00027397,2]
[311667101,1705299047545,-500.0,0.00027397,2]
[311667104,1705299047555,-500.0,0.00027397,2]
[311667106,1705299047565,-500.0,0.00027397,2]
[311667108,1705299047575,-505.56481607,0.00027397,2]
[311667110,1705299047586,-500.0,0.00027397,2]
[311667129,1705299047819,-503.1942403,0.00027397,2]
[311667134,1705299047868,-600.74807508,0.00027397,2]
[311667136,1705299047878,-500.0,0.00027397,2]
[311667138,1705299047887,-500.0,0.00027397,2]
[311667140,1705299047896,-500.0,0.00027397,2]
[311667142,1705299047911,-506.94522702,0.00027397,2]
[311667144,1705299047920,-507.78452318,0.00027397,2]
[311667146,1705299047930,-508.38573346,0.00027397,2]
[311667148,1705299047940,-500.0,0.00027397,2]
[311667150,1705299047950,-500.0,0.00027397,2]
[311667152,1705299047959,-500.0,0.00027397,2]
[311667154,1705299047968,-500.0,0.00027397,2]
[311667156,1705299047978,-500.0,0.00027397,2]
[311667158,1705299047990,-541.81743676,0.00027397,2]
[311667160,1705299047999,-500.0,0.00027397,2]
[311667162,1705299048009,-500.0,0.00027397,2]
[311667164,1705299048018,-503.98258261,0.00027397,2]
[311667166,1705299048027,-500.0,0.00027397,2]
[311667168,1705299048036,-500.0,0.00027397,2]
[311667170,1705299048045,-500.0,0.00027397,2]
[311667171,1705299048054,-500.0,0.00027397,2]
[311667172,1705299048063,-500.0,0.00027397,2]
[311667173,1705299048073,-500.0,0.00027397,2]
[311667174,1705299048083,-500.0,0.00027397,2]
[311667175,1705299048092,-502.0900624,0.00027397,2]
[311667176,1705299048102,-500.0,0.00027397,2]
[311667177,1705299048113,-713.63,0.00027397,2]
[311667178,1705299048123,-250.0,0.00027397,2]
[311667179,1705299048133,-415.26990043,0.00027397,2]
[311667180,1705299048143,-500.0,0.00027397,2]
[311667181,1705299048153,-500.0,0.00027397,2]
[311667182,1705299048162,-500.0,0.00027397,2]
[311667183,1705299048172,-504.18583161,0.00027397,2]
[311667184,1705299048181,-500.0,0.00027397,2]
[311667185,1705299048190,-500.0,0.00027397,2]
[311667186,1705299048202,-503.71786718,0.00027397,2]
[311667187,1705299048212,-500.0,0.00027397,2]
[311667188,1705299048222,-500.0,0.00027397,2]
[311667189,1705299048233,-500.0,0.00027397,2]
[311667190,1705299048244,-540.21654955,0.00027397,2]
[311667191,1705299048254,-500.0,0.00027397,2]
[311667192,1705299048265,-500.0,0.00027397,2]
[311667193,1705299048277,-500.0,0.00027397,2]
[311667194,1705299048287,-500.0,0.00027397,2]
[311667195,1705299048297,-500.0,0.00027397,2]
[311667196,1705299048308,-500.0,0.00027397,2]
[311667197,1705299048318,-500.0,0.00027397,2]
[311667198,1705299048327,-500.0,0.00027397,2]
[311667199,1705299048337,-608.05,0.00027397,2]
[311667200,1705299048346,-500.0,0.00027397,2]
[311667201,1705299048355,-500.0,0.00027397,2]
[311667202,1705299048364,-500.0,0.00027397,2]
[311667203,1705299048373,-500.0,0.00027397,30]
[311667204,1705299048383,-500.0,0.00027397,2]
[311667205,1705299048393,-500.0,0.00027397,2]
[311667206,1705299048402,-550.95,0.00027397,2]
[311667207,1705299048411,-500.0,0.00027397,2]
[311667208,1705299048420,-500.0,0.00027397,2]
[311667209,1705299048430,-500.0,0.00027397,2]
[311667210,1705299048439,-500.0,0.00027397,2]
[311667211,1705299048449,-500.0,0.00027397,2]
[311667212,1705299048458,-500.0,0.00027397,2]
[311667213,1705299048469,-502.50433597,0.00027397,2]
[311667214,1705299048479,-500.0,0.00027397,2]
[311667215,1705299048491,-500.0,0.00027397,2]
[311667216,1705299048501,-500.0,0.00027397,2]
[311667217,1705299048511,-523.29,0.00027397,2]
[311667218,1705299048521,-500.0,0.00027397,2]
[311667219,1705299048531,-500.0,0.00027397,2]
[311667220,1705299048541,-806.45,0.00027397,2]
[311667221,1705299048551,-500.0,0.00027397,2]
[311667222,1705299048561,-500.0,0.00027397,2]
[311667223,1705299048570,-500.0,0.00027397,2]
[311667224,1705299048580,-500.0,0.00027397,2]
[311667225,1705299048590,-502.58489242,0.00027397,2]
[311667226,1705299048599,-500.0,0.00027397,2]
[311667227,1705299048610,-500.0,0.00027397,2]
[311667228,1705299048619,-509.66201537,0.00027397,2]
[311667229,1705299048629,-500.0,0.00027397,2]
[311667230,1705299048639,-768.55,0.00027397,2]
[311667231,1705299048649,-512.71438649,0.00027397,2]
[311667232,1705299048659,-500.0,0.00027397,2]
[311667233,1705299048670,-643.79,0.00027397,2]
[311667234,1705299048680,-766.99,0.00027397,2]
[311667235,1705299048690,-500.0,0.00027397,2]
[311667236,1705299048699,-502.7472693,0.00027397,2]
[311667237,1705299048709,-505.94,0.00027397,2]
[311667238,1705299048719,-500.0,0.00027397,2]
[311667239,1705299048729,-505.91140038,0.00027397,2]
[311667240,1705299048739,-500.0,0.00027397,2]
[311667241,1705299048748,-500.0,0.00027397,2]
[311667242,1705299048758,-502.09317353,0.00027397,2]
[311667243,1705299048767,-500.0,0.00027397,2]
[311667244,1705299048778,-500.0,0.00027397,2]
[311667245,1705299048788,-542.3120422,0.00027397,2]
[311667246,1705299048798,-500.0,0.00027397,2]
[311667247,1705299048807,-743.3,0.00027397,2]
[311667248,1705299048818,-397.98011019,0.00027397,2]
[311667249,1705299048828,-500.0,0.00027397,2]
[311667250,1705299048838,-500.0,0.00027397,2]
[311667251,1705299048848,-500.0,0.00027397,2]
[311667252,1705299048858,-500.0,0.00027397,2]
[311667253,1705299048868,-500.0,0.00027397,2]
[311667254,1705299048878,-500.0,0.00027397,2]
[311667255,1705299048888,-500.0,0.00027397,2]
[311667256,1705299048899,-500.0,0.00027397,2]
[311667257,1705299048913,-728.14,0.00027397,2]
[311667258,1705299048924,-506.14159836,0.00027397,2]
[311667259,1705299048934,-1178.07,0.00027397,2]
[311667260,1705299048945,-500.0,0.00027397,2]
[311667261,1705299048954,-500.0,0.00027397,2]
[311667262,1705299048964,-500.0,0.00027397,2]
[311667263,1705299048974,-500.0,0.00027397,2]
[311667264,1705299048986,-500.0,0.00027397,2]
[311667265,1705299048996,-500.0,0.00027397,2]
[311667266,1705299049006,-504.38602046,0.00027397,2]
[311667267,1705299049015,-567.69,0.00027397,2]
[311667268,1705299049025,-500.0,0.00027397,2]
[311667269,1705299049034,-724.81,0.00027397,2]
[311667270,1705299049044,-509.28430296,0.00027397,2]
[311667271,1705299049053,-873.46,0.00027397,2]
[311667272,1705299049063,-500.0,0.00027397,2]
[311667273,1705299049073,-500.0,0.00027397,2]
[311667274,1705299049083,-502.53549253,0.00027397,2]
[311667275,1705299049094,-500.0,0.00027397,2]
[311667276,1705299049103,-505.83591218,0.00027397,2]
[311667277,1705299049112,-503.2006233,0.00027397,2]
[311667278,1705299049121,-638.19,0.00027397,2]
[311667279,1705299049131,-500.0,0.00027397,2]
[311667280,1705299049140,-500.0,0.00027397,2]
[311667281,1705299049150,-500.0,0.00027397,2]
[311667282,1705299049159,-506.93360664,0.00027397,2]
[311667283,1705299049170,-500.0,0.00027397,2]
[311667284,1705299049179,-500.0,0.00027397,2]
[311667285,1705299049189,-503.35833775,0.00027397,2]
[311667286,1705299049200,-500.0,0.00027397,2]
[311667287,1705299049214,-504.81900685,0.00027397,2]
[311667288,1705299049225,-500.0,0.00027397,2]
[311667289,1705299049237,-500.0,0.00027397,2]
[311667290,1705299049247,-642.75,0.00027397,2]
[311667291,1705299049258,-500.0,0.00027397,2]
[311667292,1705299049268,-500.0,0.00027397,2]
[311667293,1705299049278,-500.0,0.00027397,2]
[311667294,1705299049288,-501.60739364,0.00027397,2]
[311667295,1705299049297,-500.0,0.00027397,2]
[311667296,1705299049307,-592.01,0.00027397,2]
[311667297,1705299049317,-500.0,0.00027397,2]
[311667298,1705299049326,-500.0,0.00027397,2]
[311667299,1705299049336,-504.83514921,0.00027397,2]
[311667300,1705299049345,-500.0,0.00027397,2]
[311667301,1705299049355,-500.0,0.00027397,2]
[311667302,1705299049365,-500.0,0.00027397,2]
[311667303,1705299049374,-708.28,0.00027397,2]
[311667304,1705299049383,-500.0,0.00027397,2]
[311667305,1705299049394,-500.0,0.00027397,2]
[311667306,1705299049404,-500.0,0.00027397,2]
[311667307,1705299049413,-682.59,0.00027397,2]
[311667308,1705299049423,-504.87384054,0.00027397,2]
[311667309,1705299049432,-500.0,0.00027397,2]
[311667310,1705299049442,-500.0,0.00027397,2]
[311667311,1705299049451,-500.0,0.00027397,2]
[311667312,1705299049460,-504.8648708,0.00027397,2]
[311667313,1705299049472,-504.1524505,0.00027397,2]
[311667314,1705299049481,-502.05925444,0.00027397,2]
[311667315,1705299049491,-521.98,0.00027397,2]
[311667316,1705299049501,-500.0,0.00027397,2]
[311667317,1705299049511,-538.03,0.00027397,2]
[311667318,1705299049520,-500.0,0.00027397,2]
[311667319,1705299049530,-500.0,0.00027397,2]
[311667320,1705299049540,-512.34,0.00027397,2]
[311667321,1705299049550,-500.0,0.00027397,2]
[311667322,1705299049559,-500.0,0.00027397,2]
[311667323,1705299049569,-500.0,0.00027397,2]
[311667324,1705299049578,-500.0,0.00027397,2]
[311667325,1705299049588,-806.66,0.00027397,2]
[311667326,1705299049597,-500.0,0.00027397,2]
[311667327,1705299049606,-592.33730336,0.00027397,2]
[311667328,1705299049616,-500.0,0.00027397,2]
[311667329,1705299049625,-781.53,0.00027397,2]
[311667330,1705299049634,-500.0,0.00027397,2]
[311667331,1705299049643,-835.9,0.00027397,2]
[311667332,1705299049655,-502.51556858,0.00027397,2]
[311667333,1705299049664,-500.0,0.00027397,2]
[311667334,1705299049673,-528.98995142,0.00027397,2]
[311667335,1705299049683,-500.0,0.00027397,2]
[311667336,1705299049692,-504.77400077,0.00027397,2]
[311667337,1705299049702,-500.0,0.00027397,2]
[311667338,1705299049711,-500.0,0.00027397,2]
[311667339,1705299049722,-500.0,0.00027397,2]
[311667340,1705299049734,-502.84344613,0.00027397,2]
[311667341,1705299049743,-500.0,0.00027397,2]
[311667342,1705299049753,-632.86,0.00027397,2]
[311667343,1705299049763,-500.0,0.00027397,2]
[311667344,1705299049773,-887.37,0.00027397,2]
[311667345,1705299049784,-500.0,0.00027397,2]
[311667346,1705299049795,-500.0,0.00027397,15]
[311667347,1705299049805,-500.0,0.00027397,2]
[311667348,1705299049815,-500.0,0.00027397,2]
[311667349,1705299049826,-500.0,0.00027397,2]
[311667350,1705299049836,-500.0,0.00027397,2]
[311667351,1705299049846,-508.65699937,0.00027397,2]
[311667352,1705299049857,-603.86,0.00027397,2]
[311667353,1705299049866,-500.0,0.00027397,2]
[311667354,1705299049876,-500.0,0.00027397,2]
[311667355,1705299049885,-500.0,0.00027397,2]
[311667356,1705299049894,-500.0,0.00027397,2]
[311667357,1705299049907,-500.0,0.00027397,2]
[311667358,1705299049916,-510.42727311,0.00027397,2]
[311667359,1705299049925,-500.0,0.00027397,2]
[311667360,1705299049934,-500.0,0.00027397,2]
[311667361,1705299049943,-500.0,0.00027397,2]
[311667362,1705299049952,-506.32840897,0.00027397,2]
[311667363,1705299049961,-717.63,0.00027397,2]
[311667364,1705299049970,-500.0,0.00027397,2]
[311667365,1705299049979,-506.7507546,0.00027397,2]
[311667366,1705299049989,-505.16,0.00027397,2]
[311667367,1705299049998,-500.0,0.00027397,2]
[311667368,1705299050007,-500.0,0.00027397,2]
[311667369,1705299050017,-1078.55,0.00027397,2]
[311667370,1705299050026,-500.0,0.00027397,2]
[311667371,1705299050036,-500.0,0.00027397,2]
[311667372,1705299050045,-510.45996478,0.00027397,2]
[311667373,1705299050055,-619.69,0.00027397,2]
[311667374,1705299050065,-597.69,0.00027397,2]
[311667375,1705299050074,-500.0,0.00027397,2]
[311667376,1705299050083,-500.0,0.00027397,2]
[311667377,1705299050092,-500.0,0.00027397,2]
[311667378,1705299050102,-500.0,0.00027397,2]
[311667379,1705299050111,-500.0,0.00027397,2]
[311667380,1705299050120,-789.39,0.00027397,2]
[311667381,1705299050129,-500.0,0.00027397,2]
[311667382,1705299050138,-500.0,0.00027397,2]
[311667383,1705299050148,-592.39,0.00027397,2]
[311667384,1705299050157,-506.89116593,0.00027397,2]
[311667385,1705299050167,-502.64376791,0.00027397,2]
[311667386,1705299050176,-500.0,0.00027397,2]
[311667387,1705299050257,-500.0,0.00027397,2]
[311667388,1705299050266,-500.0,0.00027397,2]
[311667389,1705299050275,-500.0,0.00027397,2]
[311667390,1705299050285,-500.0,0.00027397,2]
[311667391,1705299050295,-517.79536771,0.00027397,2]
[311667392,1705299050304,-500.0,0.00027397,2]
[311667393,1705299050313,-500.0,0.00027397,2]
[311667394,1705299050322,-1061.07,0.00027397,2]
[311667395,1705299050332,-500.0,0.00027397,2]
[311667396,1705299050341,-500.0,0.00027397,2]
[311667397,1705299050350,-744.72,0.00027397,2]
[311667398,1705299050359,-508.89303183,0.00027397,2]
[311667399,1705299050369,-505.40256801,0.00027397,2]
[311667400,1705299050377,-500.0,0.00027397,2]
[311667401,1705299050386,-502.47358012,0.00027397,2]
[311667402,1705299050395,-508.13047774,0.00027397,2]
[311667403,1705299050404,-500.0,0.00027397,2]
[311667404,1705299050413,-500.0,0.00027397,2]
[311667405,1705299050423,-500.0,0.00027397,2]
[311667406,1705299050432,-548.45,0.00027397,2]
[311667407,1705299050446,-1404.53,0.00027397,2]
[311667408,1705299050455,-500.0,0.00027397,2]
[311667409,1705299050464,-500.0,0.00027397,2]
[311667410,1705299050473,-606.85,0.00027397,2]
[311667411,1705299050483,-511.83624277,0.00027397,2]
[311667412,1705299050492,-500.0,0.00027397,2]
[311667413,1705299050501,-694.02,0.00027397,2]
[311667414,1705299050510,-500.0,0.00027397,2]
[311667415,1705299050519,-500.0,0.00027397,2]
[311667416,1705299050528,-500.0,0.00027397,2]
[311667417,1705299050538,-500.0,0.00027397,2]
[311667418,1705299050547,-505.43829325,0.00027397,2]
[311667419,1705299050556,-500.0,0.00027397,2]
[311667420,1705299050565,-506.37178583,0.00027397,2]
[311667421,1705299050574,-500.0,0.00027397,2]